bitfinex/quotes_SOLUSD_20251124
["timestamp","ask_amount","ask_price","bid_price","bid_amount"]
[1764009284569,4.82771573,137.43,137.4,7.2778278]
[1764009284773,5.48771573,137.43,137.4,7.2778278]
[1764009285274,4.82771573,137.42,137.39,7.27832053]
[1764009285475,4.82771573,137.41,137.39,7.27832053]
[1764009285691,5.48771573,137.41,137.38,7.27885114]
[1764009285895,4.82771573,137.4,137.37,11.1795328]
[1764009286086,4.82771573,137.4,137.37,7.9395328]
[1764009286395,5.48771573,137.41,137.37,7.9395328]
[1764009286693,4.82771573,137.41,137.37,7.9395328]
[1764009286894,4.82771573,137.41,137.38,0.66]
[1764009287873,4.82771573,137.39,137.36,0.69]
[1764009288076,4.82771573,137.38,137.35,7.28047483]
[1764009288584,5.49771573,137.38,137.35,7.28047483]
[1764009288781,12.77684105,137.38,137.35,7.28047483]
[1764009288982,4.82771573,137.37,137.35,7.28047483]
[1764009289796,4.82771573,137.37,137.34,0.69]
[1764009289797,4.82771573,137.37,137.34,7.28100793]
[1764009290009,4.82771573,137.38,137.35,0.69]
[1764009290179,5.49771573,137.37,137.32,8.07175555]
[1764009290576,4.82771573,137.36,137.33,0.69]
[1764009290777,4.82771573,137.35,137.32,8.07175555]
[1764009290978,4.82771573,137.35,137.32,7.38175555]
[1764009291180,4.82771573,137.34,137.32,0.1]
[1764009291401,5.49771573,137.34,137.32,0.1]
[1764009291580,4.82771573,137.34,137.32,0.1]
[1764009293835,18.88572484,137.4,137.33,0.66]
[1764009293982,8.08771573,137.38,137.33,0.66]
[1764009294508,8.08771573,137.38,137.33,5.48771573]
[1764009294707,8.08771573,137.38,137.34,7.28119994]
[1764009295005,8.08771573,137.38,137.34,7.94119994]
[1764009296198,4.82771573,137.37,137.34,7.94119994]
[1764009296889,4.82771573,137.38,137.35,0.66]
[1764009297112,10.53874675,137.39,137.35,0.66]
[1764009297302,4.82771573,137.38,137.35,0.66]
[1764009297917,3.26,137.39,137.35,0.66]
[1764009298100,8.08771573,137.39,137.35,0.66]
[1764009298300,4.82771573,137.38,137.35,0.66]
[1764009298815,4.82771573,137.38,137.35,7.94044387]
[1764009299201,4.82771573,137.38,137.36,0.66]
[1764009300324,4.82771573,137.37,137.33,7.28173013]
[1764009300506,7.27902152,137.39,137.32,0.1]
[1764009300507,4.82771573,137.34,137.32,0.1]
[1764009300822,4.82771573,137.33,137.32,0.1]
[1764009301365,13.63766065,137.33,137.32,0.1]
[1764009302196,8.80994492,137.35,137.32,0.1]
[1764009302523,12.82916654,137.33,137.32,0.1]
[1764009302903,21.63911146,137.33,137.32,0.1]
[1764009304415,25.11880892,137.31,137.28,0.46422]
[1764009304608,8.80994492,137.28,137.26,0.1]
[1764009304926,18.08916653,137.3,137.26,0.1]
[1764009304927,24.89911146,137.27,137.26,0.1]
[1764009305145,12.82916654,137.27,137.26,0.1]
[1764009305452,12.82916654,137.31,137.25,12.82916654]
[1764009305921,12.82916654,137.3,137.25,12.82916654]
[1764009306437,12.82916654,137.29,137.23,16.08916654]
[1764009306621,12.82916654,137.3,137.25,12.82916654]
[1764009306925,12.82916654,137.32,137.27,12.82916654]
[1764009307131,12.82916654,137.32,137.26,12.82916654]
[1764009307545,3.26,137.34,137.27,0.66]
[1764009307707,12.82916654,137.33,137.27,13.48916654]
[1764009308127,12.82916654,137.32,137.27,13.48916654]
[1764009308322,12.82916654,137.32,137.27,0.66]
[1764009308525,12.82916654,137.32,137.28,7.28438228]
[1764009309039,12.82916654,137.32,137.28,7.94438228]
[1764009309426,12.82916654,137.33,137.28,25.49533799]
[1764009309736,12.82916654,137.33,137.29,0.66]
[1764009310735,12.82916654,137.33,137.3,7.28332119]
[1764009310938,12.82916654,137.34,137.3,7.28332119]
[1764009311122,16.08916654,137.35,137.31,0.66]
[1764009312210,16.08916654,137.35,137.31,7.94232265]
[1764009312835,12.82916654,137.34,137.31,7.94232265]
[1764009313031,12.82916654,137.32,137.29,7.2838517]
[1764009313224,12.82916654,137.33,137.29,26.15348095]
[1764009313409,12.82916654,137.34,137.29,26.15348095]
[1764009313821,12.82916654,137.34,137.3,0.66]
[1764009314218,12.82916654,137.34,137.31,7.28279076]
[1764009314419,12.82916654,137.33,137.31,7.28279076]
[1764009314726,12.82916654,137.32,137.3,7.28316336]
[1764009315135,12.82916654,137.33,137.3,7.28316336]
[1764009315341,0.66,137.43,137.31,0.66]
[1764009315547,12.82916654,137.36,137.33,16.308864]
[1764009315743,12.82916654,137.34,137.33,16.308864]
[1764009315943,12.82916654,137.34,137.31,0.66]
[1764009316239,12.82916654,137.32,137.3,41.80033034]
[1764009316618,12.82916654,137.32,137.3,24.25202736]
[1764009316827,12.82916654,137.31,137.3,16.308864]
[1764009317019,12.82916654,137.31,137.26,18.21303144]
[1764009317219,12.82916654,137.28,137.26,18.21303144]
[1764009317420,12.82916654,137.28,137.25,19.568864]
[1764009317724,12.82916654,137.28,137.25,20.228864]
[1764009318049,12.82916654,137.28,137.26,24.25430768]
[1764009318224,3.92,137.33,137.25,37.78305841]
[1764009318225,12.82916654,137.27,137.25,0.66]
[1764009318417,12.82916654,137.26,137.25,0.66]
[1764009318650,12.82916654,137.27,137.25,7.94581205]
[1764009319028,12.82916654,137.28,137.26,0.66]
[1764009319231,12.82916654,137.29,137.26,0.66]
[1764009319426,12.82916654,137.27,137.24,42.47163287]
[1764009319841,12.82916654,137.28,137.25,0.66]
[1764009320036,7.28330309,137.31,137.25,0.66]
[1764009320037,12.82916654,137.29,137.25,0.66]
[1764009320433,12.82916654,137.29,137.26,7.28544368]
[1764009321147,12.82916654,137.29,137.27,0.66]
[1764009321645,12.82916654,137.31,137.27,0.66]
[1764009322235,12.82916654,137.3,137.27,0.66]
[1764009322860,12.82916654,137.3,137.28,7.28438228]
[1764009323356,12.82916654,137.32,137.29,0.67]
[1764009323552,12.82916654,137.33,137.29,0.67]
[1764009324028,10.54133228,137.34,137.29,0.67]
[1764009324029,12.82916654,137.32,137.29,0.67]
[1764009324563,12.82916654,137.31,137.28,25.49533799]
[1764009324734,11.20133228,137.34,137.28,7.28438228]
[1764009324735,12.82916654,137.3,137.28,7.28438228]
[1764009325343,12.82916654,137.3,137.28,7.95438228]
[1764009325540,12.82916654,137.31,137.28,7.95438228]
[1764009325734,10.54160967,137.34,137.28,25.49533799]
[1764009325735,12.82916654,137.32,137.28,25.49533799]
[1764009325951,12.82916654,137.33,137.29,0.67]
[1764009326647,7.36685088,137.33,137.29,0.67]
[1764009327053,7.36685088,137.33,137.3,7.28332119]
[1764009327555,7.36685088,137.33,137.3,7.95332119]
[1764009328147,7.36685088,137.32,137.3,0.67]
[1764009328653,7.36685088,137.33,137.3,0.67]
[1764009329034,7.36685088,137.33,137.31,7.28279076]
[1764009329661,7.36685088,137.33,137.31,0.67]
[1764009330759,7.36685088,137.34,137.31,0.67]
[1764009330958,7.36685088,137.34,137.32,7.28226041]
[1764009332536,7.36685088,137.34,137.31,7.95269407]
[1764009332743,7.36685088,137.33,137.31,7.95269407]
[1764009333061,7.36685088,137.34,137.31,7.95269407]
[1764009334251,7.36685088,137.34,137.31,7.28269407]
[1764009334460,7.36685088,137.34,137.32,0.67]
[1764009334972,7.36685088,137.35,137.32,0.67]
[1764009335141,7.36685088,137.35,137.32,7.95200517]
[1764009336772,7.93855011,137.39,137.33,0.67]
[1764009336966,10.62685088,137.37,137.33,0.67]
[1764009337262,7.36685088,137.36,137.33,7.95140661]
[1764009338275,10.62685088,137.37,137.34,0.67]
[1764009338861,3.26,137.37,137.34,0.67]
[1764009339258,3.26,137.37,137.34,7.95103488]
[1764009340881,3.26,137.37,137.35,0.67]
[1764009341047,3.26,137.37,137.34,7.95103488]
[1764009341969,35.65897894,137.41,137.34,7.95103488]
[1764009341970,7.27590221,137.44,137.36,23.67571488]
[1764009342278,14.64275309,137.44,137.38,7.36685088]
[1764009342761,14.64275309,137.44,137.39,0.67]
[1764009342962,27.37231623,137.45,137.4,7.27802037]
[1764009343158,18.56237131,137.45,137.4,7.27802037]
[1764009343358,10.53552043,137.45,137.41,0.67]
[1764009344165,10.53552043,137.45,137.41,7.94747596]
[1764009344360,18.56237131,137.45,137.4,7.2778744]
[1764009344574,14.28483861,137.45,137.4,7.2778744]
[1764009344766,13.62483861,137.45,137.41,0.67]
[1764009344969,6.34931818,137.45,137.41,0.67]
[1764009345274,13.62469377,137.45,137.41,0.67]
[1764009346386,13.62469377,137.45,137.41,7.94712941]
[1764009346868,13.62469377,137.45,137.41,7.27712941]
[1764009347058,13.62469377,137.45,137.41,7.94712941]
[1764009347255,13.62469377,137.45,137.41,0.67]
[1764009347468,3.74931818,137.44,137.39,17.008864]
[1764009347652,3.74931818,137.44,137.4,7.97799705]
[1764009347851,3.08931818,137.44,137.4,7.97799705]
[1764009348051,13.62469377,137.45,137.41,0.7]
[1764009348252,14.28469377,137.45,137.41,0.7]
[1764009348771,14.28469377,137.45,137.41,7.97736042]
[1764009349077,14.28469377,137.45,137.41,7.97746646]
[1764009349454,3.74931818,137.44,137.4,7.2779437]
[1764009350075,3.74931818,137.44,137.4,7.9779437]
[1764009350457,11.02555565,137.44,137.4,7.9779437]
[1764009350661,3.08931818,137.43,137.4,7.9779437]
[1764009350972,3.08931818,137.43,137.4,7.2779437]
[1764009351391,3.08931818,137.44,137.41,0.7]
[1764009351568,10.53557165,137.45,137.41,0.7]
[1764009351569,13.62488983,137.45,137.41,0.7]
[1764009351869,3.74931818,137.44,137.4,7.2779437]
[1764009352074,3.08931818,137.43,137.39,23.58707994]
[1764009352279,3.08931818,137.43,137.36,0.7]
[1764009352280,3.08931818,137.4,137.36,0.7]
[1764009352476,3.9,137.42,137.36,7.97976138]
[1764009352673,3.08931818,137.4,137.36,7.97976138]
[1764009353172,3.24,137.42,137.37,3.76931818]
[1764009353574,10.51700347,137.42,137.38,0.68]
[1764009353780,14.26632165,137.42,137.37,0.68]
[1764009354477,3.24,137.42,137.38,3.08931818]
[1764009354657,3.24,137.42,137.39,7.27855011]
[1764009354859,0.66,137.41,137.37,7.27930594]
[1764009355167,3.74931818,137.41,137.37,7.95930594]
[1764009355961,3.74931818,137.41,137.37,0.68]
[1764009356882,11.02692984,137.41,137.37,7.95936114]
[1764009357082,11.02692984,137.41,137.37,0.68]
[1764009357567,11.02692984,137.41,137.37,7.95956481]
[1764009358289,10.36692984,137.41,137.37,7.27956481]
[1764009358461,11.02692984,137.41,137.37,7.95956481]
[1764009359060,3.08931818,137.39,137.35,3.24]
[1764009359380,3.08931818,137.4,137.36,0.68]
[1764009360186,3.24,137.42,137.37,19.39818218]
[1764009360394,3.08931818,137.45,137.37,19.548864]
[1764009360600,3.28931818,137.46,137.38,16.988864]
[1764009360755,3.44,137.46,137.42,3.08931818]
[1764009360960,0.2,137.46,137.44,3.08931818]
[1764009361366,0.2,137.46,137.44,0.68]
[1764009361886,0.2,137.46,137.42,3.24]
[1764009362061,0.2,137.46,137.39,40.83432964]
[1764009362062,3.08931818,137.45,137.39,40.83432964]
[1764009362263,0.2,137.46,137.4,7.95759464]
[1764009362465,0.2,137.46,137.41,3.08931818]
[1764009362770,0.2,137.46,137.41,3.76931818]
[1764009363090,0.2,137.46,137.42,7.95696114]
[1764009363091,7.47491197,137.46,137.42,7.95696114]
[1764009363279,0.2,137.46,137.42,11.04627932]
[1764009363470,0.2,137.46,137.43,0.68]
[1764009365071,0.2,137.46,137.44,7.27590221]
[1764009365385,0.2,137.46,137.45,3.08931818]
[1764009365587,0.2,137.46,137.45,3.76931818]
[1764009365795,0.2,137.46,137.45,3.92]
[1764009367191,0.2,137.46,137.45,14.28469104]
[1764009367395,0.2,137.46,137.45,30.59355504]
[1764009367702,0.2,137.46,137.45,24.26423686]
[1764009367893,0.2,137.46,137.45,16.988864]
[1764009368468,0.2,137.46,137.45,24.26423686]
[1764009369478,0.2,137.46,137.45,16.308864]
[1764009369880,0.2,137.46,137.43,21.43056621]
[1764009369881,3.28931818,137.46,137.43,11.19600627]
[1764009371912,0.2,137.46,137.44,0.68]
[1764009373988,0.2,137.46,137.44,16.988864]
[1764009374189,0.2,137.46,137.44,0.68]
[1764009374900,0.2,137.46,137.44,7.95585704]
[1764009375285,0.2,137.46,137.44,7.27585704]
[1764009375498,0.2,137.46,137.45,0.68]
[1764009376196,0.2,137.46,137.45,7.95537286]
[1764009377872,3.28931818,137.46,137.44,16.308864]
[1764009378080,0.2,137.46,137.44,0.68]
[1764009378273,3.28931818,137.46,137.44,0.68]
[1764009378479,3.28931818,137.46,137.43,7.27621924]
[1764009378700,3.28931818,137.46,137.44,0.68]
[1764009378910,3.28931818,137.46,137.43,7.27621924]
[1764009378911,3.08931818,137.45,137.43,7.95621924]
[1764009379279,3.28931818,137.46,137.44,0.68]
[1764009379512,3.08931818,137.45,137.42,7.27678808]
[1764009379709,3.08931818,137.43,137.38,0.68]
[1764009379887,0.66,137.44,137.38,0.68]
[1764009380200,16.28479505,137.46,137.38,0.68]
[1764009380201,3.08931818,137.41,137.39,23.58741411]
[1764009380512,3.08931818,137.41,137.39,7.27855011]
[1764009381780,3.08931818,137.4,137.38,7.95884077]
[1764009381979,3.08931818,137.4,137.37,7.27959734]
[1764009382206,3.08931818,137.39,137.37,7.27959734]
[1764009382987,8.80994492,137.43,137.38,0.72]
[1764009383303,3.08931818,137.42,137.38,3.96]
[1764009383609,3.08931818,137.41,137.39,7.27855011]
[1764009384197,3.08931818,137.42,137.39,7.27855011]
[1764009384398,7.93659237,137.43,137.37,18.19902453]
[1764009384399,3.08931818,137.41,137.37,21.43902453]
[1764009384605,3.08931818,137.38,137.36,7.27974126]
[1764009385286,3.08931818,137.37,137.35,16.308864]
[1764009385608,3.08931818,137.37,137.35,23.58951538]
[1764009385783,7.27846138,137.4,137.35,23.58951538]
[1764009385784,3.08931818,137.38,137.35,23.58951538]
[1764009385981,3.08931818,137.38,137.35,16.308864]
[1764009386193,3.08931818,137.37,137.35,24.30951159]
[1764009386378,3.08931818,137.38,137.35,24.30951159]
[1764009387019,3.08931818,137.39,137.36,0.72]
[1764009387325,3.08931818,137.39,137.35,24.30951159]
[1764009387624,3.08931818,137.38,137.35,24.30951159]
[1764009387911,3.08931818,137.38,137.35,8.00064759]
[1764009388119,3.08931818,137.36,137.34,21.97915268]
[1764009388291,3.08931818,137.37,137.33,26.8302762]
[1764009388487,3.08931818,137.37,137.34,0.72]
[1764009388816,4.83183633,137.37,137.34,0.72]
[1764009389298,4.83183633,137.38,137.34,0.72]
[1764009389695,7.93814834,137.4,137.35,7.28066982]
[1764009389902,4.83183633,137.39,137.35,7.28066982]
[1764009390213,4.83183633,137.39,137.36,0.72]
[1764009390801,12.76998467,137.4,137.36,7.99978484]
[1764009390996,3.24,137.41,137.36,7.99978484]
[1764009390997,4.83183633,137.41,137.36,7.99978484]
[1764009391199,4.83183633,137.41,137.37,0.72]
[1764009391404,12.1093505,137.41,137.37,0.72]
[1764009391611,4.83183633,137.4,137.37,0.72]
[1764009391918,4.83183633,137.41,137.37,0.72]
[1764009392515,0.66,137.4,137.36,28.72013428]
[1764009392693,5.49183633,137.41,137.37,0.72]
[1764009393224,12.76955856,137.41,137.37,7.99941492]
[1764009394203,10.51715843,137.42,137.38,0.72]
[1764009394415,8.73183633,137.42,137.38,0.72]
[1764009395215,8.07183633,137.42,137.38,0.72]
[1764009395423,15.34890918,137.42,137.38,7.99869577]
[1764009396695,16.00890918,137.42,137.38,7.99869577]
[1764009397402,16.00890918,137.42,137.3,0.72]
[1764009397403,8.80994492,137.38,137.3,0.72]
[1764009397598,4.83183633,137.34,137.31,0.72]
[1764009397799,4.83183633,137.33,137.3,0.72]
[1764009398507,12.82786615,137.33,137.3,0.72]
[1764009398800,12.82786615,137.31,137.26,0.72]
[1764009398994,12.82786615,137.3,137.26,0.72]
[1764009399212,12.82786615,137.3,137.28,16.308864]
[1764009399613,0.66,137.32,137.28,16.308864]
[1764009399614,12.82786615,137.31,137.28,16.308864]
[1764009399818,20.10980692,137.33,137.29,0.72]
[1764009400198,3.24,137.34,137.29,13.54786615]
[1764009400718,16.06786615,137.34,137.3,0.72]
[1764009401012,3.24,137.34,137.3,0.72]
[1764009401535,16.06786615,137.34,137.31,7.28279076]
[1764009401899,16.06786615,137.34,137.31,8.00279076]
[1764009402220,23.34923755,137.34,137.3,7.28314143]
[1764009402702,23.34923755,137.34,137.3,8.00314143]
[1764009403226,12.82786615,137.33,137.3,8.00314143]
[1764009404127,16.06786615,137.37,137.31,29.85673015]
[1764009404312,16.06786615,137.37,137.31,33.09673015]
[1764009404495,16.06786615,137.37,137.32,0.72]
[1764009404700,12.82786615,137.36,137.32,0.72]
[1764009405122,12.82786615,137.35,137.32,0.72]
[1764009405326,20.76860799,137.35,137.31,26.83132711]
[1764009405516,20.76860799,137.35,137.31,7.28246311]
[1764009405517,13.48786615,137.34,137.31,7.28246311]
[1764009405721,12.82786615,137.34,137.31,7.28246311]
[1764009406037,12.82786615,137.35,137.32,0.72]
[1764009406232,12.82786615,137.36,137.32,0.72]
[1764009406533,23.34755763,137.37,137.32,0.72]
[1764009406703,24.00755763,137.37,137.32,0.72]
[1764009407028,3.24,137.37,137.32,13.54786615]
[1764009407336,3.24,137.37,137.33,0.72]
[1764009407507,3.24,137.37,137.34,7.28119994]
[1764009407707,13.48786615,137.39,137.34,25.48419979]
[1764009407907,12.82786615,137.38,137.35,0.71]
[1764009408120,3.24,137.4,137.35,0.71]
[1764009408322,16.06786615,137.4,137.35,0.71]
[1764009408515,16.72786615,137.4,137.35,0.71]
[1764009408713,12.82786615,137.39,137.35,0.71]
[1764009409332,10.51806095,137.4,137.35,0.71]
[1764009409505,12.82786615,137.39,137.35,0.71]
[1764009409705,12.82786615,137.39,137.36,7.28013977]
[1764009410827,12.82786615,137.39,137.36,7.99013977]
[1764009411938,12.82786615,137.39,137.33,16.308864]
[1764009411939,12.82786615,137.37,137.33,16.308864]
[1764009412308,3.9,137.37,137.33,24.30034763]
[1764009412521,3.24,137.37,137.34,0.71]
[1764009413622,3.24,137.37,137.34,7.99070925]
[1764009415537,23.34749034,137.37,137.33,23.59038108]
[1764009415835,12.82786615,137.35,137.33,16.308864]
[1764009416639,12.82786615,137.35,137.32,7.2821982]
[1764009416821,12.82786615,137.35,137.32,7.9821982]
[1764009417227,3.24,137.37,137.33,0.7]
[1764009417424,16.72786615,137.37,137.33,0.7]
[1764009417923,24.00757651,137.37,137.33,0.7]
[1764009418131,23.34757651,137.37,137.33,7.98171494]
[1764009418437,24.00757651,137.37,137.33,7.98171494]
[1764009420627,16.01223052,137.37,137.33,7.98171494]
[1764009420855,8.07252016,137.37,137.34,0.7]
[1764009421051,15.35228228,137.37,137.33,7.28171494]
[1764009421349,5.49252016,137.36,137.31,7.98273972]
[1764009421526,4.83252016,137.35,137.31,7.98273972]
[1764009421729,4.83252016,137.35,137.32,0.7]
[1764009422333,4.83252016,137.36,137.32,0.7]
[1764009422972,4.83252016,137.36,137.33,7.28173013]
[1764009423465,4.83252016,137.36,137.33,7.98173013]
[1764009423971,12.11284289,137.36,137.33,7.98173013]
[1764009424140,4.83252016,137.35,137.33,0.7]
[1764009424661,13.56504032,137.34,137.27,0.7]
[1764009424842,4.83252016,137.29,137.27,7.98487901]
[1764009425025,4.83252016,137.3,137.27,7.98487901]
[1764009425239,7.28323262,137.31,137.27,7.98487901]
[1764009425240,4.83252016,137.29,137.27,7.98487901]
[1764009426640,12.8345225,137.29,137.27,7.98487901]
[1764009426840,12.8345225,137.29,137.28,0.7]
[1764009427544,3.24,137.34,137.28,0.7]
[1764009427740,12.8345225,137.32,137.28,0.7]
[1764009428065,12.8345225,137.32,137.29,7.2838517]
[1764009428242,12.8345225,137.3,137.28,0.7]
[1764009428442,12.8345225,137.31,137.28,7.98437719]
[1764009428864,12.8345225,137.31,137.29,0.7]
[1764009429556,12.8345225,137.3,137.26,27.53408739]
[1764009429764,12.8345225,137.29,137.27,0.7]
[1764009430362,12.8345225,137.3,137.27,0.7]
[1764009430561,13.4945225,137.3,137.26,23.59408739]
[1764009430772,12.8345225,137.29,137.26,24.29408739]
[1764009431150,12.8345225,137.27,137.24,0.7]
[1764009431569,12.8345225,137.26,137.24,0.7]
[1764009431785,12.8345225,137.25,137.21,0.7]
[1764009432080,12.8345225,137.23,137.21,0.7]
[1764009432376,12.8345225,137.24,137.21,7.98808953]
[1764009432880,12.8345225,137.24,137.22,0.7]
[1764009433056,12.8345225,137.25,137.22,0.7]
[1764009433261,12.8345225,137.26,137.22,0.7]
[1764009433458,12.8345225,137.27,137.22,17.008864]
[1764009433693,12.8345225,137.27,137.23,7.98703636]
[1764009434403,12.8345225,137.27,137.24,0.7]
[1764009435566,12.8345225,137.27,137.24,7.98613827]
[1764009435764,3.9,137.29,137.24,7.98613827]
[1764009435765,3.24,137.29,137.24,7.98613827]
[1764009435984,3.24,137.29,137.25,13.5345225]
[1764009436186,8.80994492,137.33,137.25,13.5345225]
[1764009436187,3.24,137.32,137.26,0.7]
[1764009436395,12.8345225,137.31,137.26,0.7]
[1764009436563,12.8345225,137.29,137.26,0.7]
[1764009436763,12.8345225,137.27,137.24,26.20240175]
[1764009436979,12.8345225,137.28,137.25,0.7]
[1764009437162,12.8345225,137.29,137.25,0.7]
[1764009437791,12.8345225,137.29,137.25,7.98566657]
[1764009437985,12.8345225,137.29,137.25,26.20060281]
[1764009438289,7.94301066,137.31,137.26,16.7745225]
[1764009438290,13.4945225,137.31,137.26,16.7745225]
[1764009438773,13.4945225,137.31,137.27,0.7]
[1764009438975,16.0745225,137.32,137.27,13.5345225]
[1764009439367,12.8345225,137.31,137.28,0.7]
[1764009439884,12.8345225,137.31,137.29,7.2838517]
[1764009440080,16.0745225,137.32,137.29,7.2838517]
[1764009440286,16.7345225,137.32,137.29,7.2838517]
[1764009440468,16.0745225,137.32,137.29,7.9838517]
[1764009440666,3.24,137.32,137.3,0.7]
[1764009440969,16.0745225,137.32,137.3,0.7]
[1764009441877,3.24,137.32,137.3,7.983302]
[1764009442576,12.8345225,137.33,137.3,7.983302]
[1764009443292,12.8345225,137.33,137.3,0.7]
[1764009443502,12.8345225,137.33,137.3,7.28331723]
[1764009443703,12.8345225,137.32,137.29,8.00362349]
[1764009444879,20.11628632,137.33,137.29,8.00362349]
[1764009445687,12.8345225,137.32,137.29,8.00362349]
[1764009446095,12.8345225,137.31,137.29,7.28362349]
[1764009446282,13.4945225,137.32,137.29,7.28362349]
[1764009446664,5.49597873,137.32,137.29,7.28362349]
[1764009446899,4.83597873,137.32,137.29,8.00362349]
[1764009447989,12.11829711,137.32,137.29,8.00362349]
[1764009448186,4.83597873,137.31,137.29,0.72]
[1764009448386,12.11829711,137.32,137.29,0.72]
[1764009449401,4.83597873,137.32,137.29,0.72]
[1764009449605,4.83597873,137.31,137.29,8.00377041]
[1764009449790,4.83597873,137.32,137.29,8.00377041]
[1764009450319,5.49597873,137.32,137.29,8.00377041]
[1764009450521,7.28194606,137.33,137.26,16.308864]
[1764009450802,4.83597873,137.28,137.24,5.55597873]
[1764009451030,4.83597873,137.28,137.24,23.36535628]
[1764009451031,3.09649228,137.28,137.24,23.36535628]
[1764009451189,3.09649228,137.27,137.24,3.96]
[1764009451787,3.09649228,137.28,137.25,0.72]
[1764009451987,3.09649228,137.29,137.25,17.028864]
[1764009452194,3.09649228,137.29,137.26,0.72]
[1764009452794,7.94333415,137.3,137.26,0.72]
[1764009453011,3.09649228,137.29,137.26,0.72]
[1764009453304,3.09649228,137.28,137.25,0.72]
[1764009453490,3.75649228,137.29,137.25,8.00570953]
[1764009453907,3.09649228,137.28,137.25,8.00570953]
[1764009454405,3.09649228,137.29,137.26,0.72]
[1764009454591,3.09649228,137.3,137.26,0.72]
[1764009454793,3.09649228,137.29,137.26,0.72]
[1764009456110,3.09649228,137.28,137.26,0.72]
[1764009456310,3.09649228,137.29,137.26,8.00542762]
[1764009456612,3.09649228,137.29,137.26,7.28542762]
[1764009457015,3.09649228,137.29,137.26,8.00542762]
[1764009458813,3.09649228,137.29,137.26,7.28542762]
[1764009459030,3.09649228,137.29,137.26,8.00542762]
[1764009459217,3.9,137.31,137.27,0.72]
[1764009459513,14.27930084,137.31,137.27,0.72]
[1764009459702,3.09649228,137.3,137.27,0.72]
[1764009459897,11.18280856,137.31,137.27,0.72]
[1764009459898,14.27930084,137.31,137.27,0.72]
[1764009460323,14.27930084,137.31,137.27,8.00483624]
[1764009462017,3.24,137.31,137.28,3.81649228]
[1764009462197,8.80994492,137.34,137.29,3.09649228]
[1764009462198,3.09649228,137.34,137.29,3.09649228]
[1764009462400,3.09649228,137.34,137.29,3.81649228]
[1764009462620,3.09649228,137.34,137.3,0.72]
[1764009462621,10.37792223,137.34,137.3,0.72]
[1764009462792,11.03792223,137.34,137.3,0.72]
[1764009463525,7.28142995,137.34,137.3,8.0030263]
[1764009463726,11.03792223,137.34,137.3,8.0030263]
[1764009464023,11.03792223,137.34,137.3,0.72]
[1764009464393,11.03792223,137.34,137.3,8.00321851]
[1764009464816,10.37792223,137.34,137.31,0.72]
[1764009465139,6.33649228,137.36,137.32,3.09649228]
[1764009465299,3.24,137.36,137.34,3.09649228]
[1764009465697,3.24,137.36,137.34,11.0974613]
[1764009465897,21.29326071,137.39,137.35,3.81649228]
[1764009465898,7.27870085,137.39,137.35,3.81649228]
[1764009466102,14.27519313,137.39,137.35,0.72]
[1764009466307,3.09649228,137.38,137.35,0.72]
[1764009466720,3.24,137.39,137.35,0.72]
[1764009466926,6.33649228,137.39,137.35,0.72]
[1764009467136,6.99649228,137.39,137.35,0.72]
[1764009467701,3.24,137.39,137.35,11.09670608]
[1764009467901,6.33649228,137.39,137.35,8.0002138]
[1764009468100,6.33649228,137.39,137.36,0.7]
[1764009468101,13.61507129,137.39,137.36,0.7]
[1764009468315,3.24,137.39,137.36,3.79649228]
[1764009468823,3.24,137.39,137.37,0.7]
[1764009469128,0.2,137.46,137.38,22.64535628]
[1764009469337,0.2,137.46,137.41,12.38596912]
[1764009469539,0.2,137.46,137.41,19.548864]
[1764009469738,3.29649228,137.46,137.42,11.07345342]
[1764009470031,0.2,137.46,137.42,26.16936399]
[1764009470201,0.2,137.46,137.44,3.09649228]
[1764009470718,0.2,137.46,137.45,0.7]
[1764009472214,0.2,137.46,137.45,7.97537286]
[1764009474907,0.2,137.46,137.45,0.7]
[1764009475109,0.2,137.46,137.45,7.97537286]
[1764009475620,0.2,137.46,137.45,0.7]
[1764009476633,0.2,137.46,137.43,7.27626911]
[1764009476830,3.29649228,137.46,137.43,7.93626911]
[1764009477004,3.09649228,137.45,137.42,10.51683]
[1764009477206,3.09649228,137.45,137.43,0.66]